fUST/lending_fUST_20250622
["ID","MTS","AMOUNT","RATE_DAILY","PERIOD"]
[366973620,1750602660575,-460.0,0.00021917,3]
[366973621,1750602660585,-460.0,0.00021917,3]
[366973622,1750602660602,-460.0,0.00021917,3]
[366973623,1750602660611,-460.0,0.00021917,3]
[366973624,1750602660622,-460.0,0.00021917,3]
[366973625,1750602660632,-208.64636091,0.00021917,3]
[366973626,1750602660642,-518.55,0.00021917,3]
[366973627,1750602660652,-496.94,0.00021917,3]
[366973628,1750602660662,-496.94,0.00021917,3]
[366973629,1750602660672,-496.94,0.00021917,3]
[366973630,1750602660681,-419.14367,0.00021917,2]
[366973631,1750602660691,-496.94,0.00021917,3]
[366973632,1750602660701,-496.94,0.00021917,3]
[366973633,1750602660711,-496.94,0.00021917,3]
[366973634,1750602660721,-496.94,0.00021917,3]
[366973635,1750602660731,-419.14367,0.00021917,2]
[366973636,1750602660741,-496.94,0.00021917,3]
[366973637,1750602660750,-419.14367,0.00021917,2]
[366973638,1750602660760,-496.94,0.00021917,3]
[366973639,1750602660769,-496.94,0.00021917,3]
[366973640,1750602660779,-419.14367,0.00021917,2]
[366973641,1750602660789,-496.94,0.00021917,3]
[366973642,1750602660799,-496.94,0.00021917,3]
[366973643,1750602660808,-496.94,0.00021917,3]
[366973644,1750602660818,-496.94,0.00021917,3]
[366973645,1750602660828,-496.94,0.00021917,3]
[366973646,1750602660843,-496.94,0.00021917,3]
[366973647,1750602660853,-460.0,0.00021917,3]
[366973648,1750602660862,-496.94,0.00021917,3]
[366973649,1750602660871,-460.0,0.00021917,3]
[366973650,1750602660881,-496.94,0.00021917,3]
[366973651,1750602660890,-496.94,0.00021917,3]
[366973652,1750602660900,-419.14367,0.00021917,2]
[366973653,1750602660909,-496.94,0.00021917,3]
[366973654,1750602660919,-496.94,0.00021917,3]
[366973655,1750602660928,-419.14367,0.00021917,2]
[366973656,1750602660937,-496.94,0.00021917,3]
[366973657,1750602660946,-419.14367,0.00021917,2]
[366973658,1750602660956,-496.94,0.00021917,3]
[366973659,1750602660965,-419.14367,0.00021917,2]
[366973660,1750602660974,-497.11573586,0.00021917,3]
[366973661,1750602660984,-460.0,0.00021917,3]
[366973662,1750602660993,-460.0,0.00021917,3]
[366973663,1750602661004,-460.0,0.00021917,3]
[366973664,1750602661013,-460.0,0.00021917,3]
[366973665,1750602661023,-460.0,0.00021917,3]
[366973666,1750602661033,-400.34292741,0.00021917,3]
[366973667,1750602661043,-460.0,0.00021917,3]
[366973668,1750602661052,-460.0,0.00021917,3]
[366973669,1750602661062,-460.0,0.00021917,3]
[366973670,1750602661071,-460.0,0.00021917,3]
[366973671,1750602661081,-460.0,0.00021917,3]
[366973672,1750602661096,-460.0,0.00021917,3]
[366973673,1750602661106,-460.0,0.00021917,3]
[366973674,1750602661116,-460.0,0.00021917,3]
[366973675,1750602661126,-460.0,0.00021917,3]
[366973676,1750602661136,-460.0,0.00021917,3]
[366973677,1750602661145,-169.2674609,0.00021917,3]
[366973679,1750602694363,6854.1074054,0.00025,120]
[366973683,1750602818878,1000.0,0.00024,30]
[366973684,1750602830492,10000.0,0.00024,30]
[366973685,1750602834824,160.58218934,0.00025,120]
[366973686,1750602851005,222565.98,0.00025,120]
[366973687,1750602851683,1000.0,0.00025,120]
[366973688,1750602852351,1000.0,0.00025,120]
[366973689,1750602853078,1000.0,0.00025,120]
[366973690,1750602853921,1000.0,0.00025,120]
[366973691,1750602854800,1000.0,0.00025,120]
[366973693,1750602886740,240.610685,0.00013699,2]
[366973694,1750602893331,221070.553,0.00025,120]
[366973696,1750602974417,8884.5135044,0.00018795,2]
[366973700,1750603042673,200.0,0.00024931,120]
[366973701,1750603076833,4530.0,0.00025,120]
[366973703,1750603081476,-312.622048,0.00019178,2]
[366973704,1750603098882,187.73860198,0.0001911,2]
[366973705,1750603115276,387.7628196,0.00018772,2]
[366973706,1750603166313,159.680533,0.00018947,2]
[366973708,1750603278958,24900.0,0.00018796,2]
[366973709,1750603332113,341.421569,0.00018796,2]
[366973711,1750603589387,1311.0378773,0.00018946,2]
[366973712,1750603620451,1539.2887664,0.00018825,2]
[366973713,1750603630136,-300.0,0.00019585,2]
[366973714,1750603630158,-300.0,0.00019586,2]
[366973715,1750603630179,-300.0,0.00019586,2]
[366973716,1750603630200,-1200.0,0.00019586,2]
[366973717,1750603630221,-300.0,0.00019586,2]
[366973718,1750603630243,-5854.86504672,0.00019587,2]
[366973719,1750603639146,-1091.55559258,0.00019587,2]
[366973720,1750603701369,500.0,0.00024,30]
[366973721,1750603723287,1000.0,0.00024,30]
[366973722,1750603726268,1000.0,0.00024,35]
[366973723,1750603727896,1000.0,0.00024,40]
[366973724,1750603729285,1000.0,0.00024,45]
[366973727,1750603730611,1000.0,0.00024,50]
[366973728,1750603745117,-300.0,0.00019586,2]
[366973729,1750603745139,-5844.17142731,0.00019587,2]
[366973730,1750603745886,1000.0,0.00024,55]
[366973731,1750603749099,-10517.70040029,0.00019587,2]
[366973732,1750603749122,-193.64810569,0.00019692,2]
[366973733,1750603750101,-216.5114,0.00019692,2]
[366973734,1750603753582,1000.0,0.00024,33]
[366973735,1750603754993,1000.0,0.00024,37]
[366973736,1750603758711,1000.0,0.00024,42]
[366973888,1750603838003,-447.3330831,0.00019691,2]
[366973890,1750603838013,-17.24688106,0.00019692,2]
[366973892,1750603838023,-300.0,0.0001979,2]
[366973894,1750603838032,-300.0,0.0001979,2]
[366973896,1750603838042,-300.0,0.0001979,2]
[366973898,1750603838052,-1200.0,0.0001979,2]
[366973900,1750603838064,-50000.0,0.00019791,2]
[366973902,1750603838075,-1000.0,0.00019793,2]
[366973904,1750603838084,-392.0,0.00019921,2]
[366973906,1750603838094,-500.0,0.00019968,2]
[366973908,1750603838103,-263.29,0.00020014,2]
[366973910,1750603838113,-427.40638672,0.00020062,2]
[366973912,1750603838123,-392.0,0.00020103,2]
[366973914,1750603838132,-392.0,0.00020108,2]
[366973916,1750603838142,-240.610685,0.00020187,2]
[366973918,1750603838152,-592.83521497,0.00020287,2]
[366973920,1750603838161,-392.0,0.00020293,2]
[366973922,1750603838171,-1888.0,0.00020379,2]
[366973924,1750603838180,-427.40638672,0.00020431,2]
[366973926,1750603838190,-641.9,0.00020725,3]
[366973928,1750603838199,-320.95,0.00020725,3]
[366973930,1750603838209,-500.0,0.0002073,2]
[366973932,1750603838219,-500.0,0.0002073,2]
[366973934,1750603838228,-587.30696007,0.0002073,2]
[366973936,1750603838238,-500.0,0.0002073,2]
[366973938,1750603838247,-500.0,0.0002073,2]
[366973940,1750603838259,-500.0,0.0002073,2]
[366973942,1750603838270,-500.0,0.0002073,2]
[366973944,1750603838280,-500.0,0.0002073,2]
[366973946,1750603838289,-438.02751829,0.0002073,2]
[366973948,1750603838300,-500.0,0.0002073,2]
[366973951,1750603838309,-500.0,0.0002073,2]
[366973952,1750603838320,-193.86614953,0.0002073,2]
[366973954,1750603838330,-500.0,0.0002073,2]
[366973956,1750603838340,-500.0,0.0002073,2]
[366973959,1750603838349,-500.0,0.0002073,2]
[366973961,1750603838360,-500.0,0.0002073,2]
[366973962,1750603838369,-500.0,0.0002073,2]
[366973965,1750603838379,-500.0,0.0002073,2]
[366973967,1750603838390,-500.0,0.0002073,2]
[366973968,1750603838400,-465.97399426,0.0002073,2]
[366973970,1750603838410,-500.0,0.0002073,2]
[366973972,1750603838419,-500.0,0.0002073,2]
[366973975,1750603838430,-500.0,0.0002073,2]
[366973977,1750603838440,-500.0,0.0002073,2]
[366973978,1750603838450,-500.0,0.0002073,2]
[366973981,1750603838459,-500.0,0.0002073,2]
[366973983,1750603838469,-500.0,0.0002073,2]
[366973985,1750603838479,-500.0,0.0002073,2]
[366973987,1750603838489,-500.0,0.0002073,2]
[366973989,1750603838499,-500.0,0.0002073,2]
[366973991,1750603838510,-221.08661269,0.0002073,2]
[366973993,1750603838520,-207.4,0.00020735,2]
[366973995,1750603838530,-427.40638672,0.00020801,2]
[366973997,1750603838540,-1888.0,0.00020807,2]
[366973999,1750603838551,-300.0,0.00020904,2]
[366974001,1750603838561,-151.66540298,0.00020987,2]
[366974003,1750603838573,-1000.0,0.00020987,2]
[366974005,1750603838584,-1000.0,0.00020987,2]
[366974031,1750603838846,-1000.0,0.00020987,2]
[366974033,1750603838856,-700.0,0.00020987,2]
[366974035,1750603838866,-1000.0,0.00020987,2]
[366974037,1750603838877,-1000.0,0.00020987,2]
[366974039,1750603838887,-1000.0,0.00020987,2]
[366974041,1750603838897,-5000.0,0.00020987,2]
[366974043,1750603838906,-1000.0,0.00020987,2]
[366974045,1750603838916,-1000.0,0.00020987,2]
[366974047,1750603838925,-1000.0,0.00020987,2]
[366974049,1750603838935,-435.35992319,0.00020987,2]
[366974051,1750603838945,-25000.0,0.00020987,2]
[366974053,1750603838954,-9195.29,0.0002099,10]
[366974055,1750603838963,-500.0,0.00020999,2]
[366974057,1750603838974,-500.0,0.00020999,2]
[366974059,1750603838986,-507.29008963,0.00020999,2]
[366974061,1750603838996,-500.0,0.00020999,2]
[366974063,1750603839006,-500.0,0.00020999,2]
[366974065,1750603839015,-507.29008963,0.00020999,2]
[366974067,1750603839026,-507.29008963,0.00020999,2]
[366974069,1750603839036,-500.0,0.00020999,2]
[366974071,1750603839045,-500.0,0.00020999,2]
[366974073,1750603839055,-320.7812804,0.00020999,2]
[366974075,1750603839065,-507.29008963,0.00020999,2]
[366974077,1750603839079,-500.0,0.00020999,2]
[366974080,1750603839097,-507.29008963,0.00020999,2]
[366974082,1750603839109,-568.31744994,0.00020999,2]
[366974084,1750603839119,-507.29008963,0.00020999,2]
[366974086,1750603839129,-507.29008963,0.00020999,2]
[366974088,1750603839139,-507.29008963,0.00020999,2]
[366974091,1750603839150,-1000.0,0.00021,21]
[366974093,1750603839160,-62599.81794058,0.00021,2]
[366974099,1750603839214,-3106.47997882,0.00021,2]
[366974101,1750603839224,-160.0,0.00021,2]
[366974103,1750603839235,-365.0,0.0002103,2]
[366974105,1750603839245,-500.0,0.00021064,2]
[366974107,1750603839255,-160.0,0.00021116,2]
[366974109,1750603839265,-160.0,0.00021129,2]
[366974111,1750603839275,-230.14598372,0.00021129,2]
[366974114,1750603839285,-836.56272071,0.00021129,2]
[366974116,1750603839295,-12551.52821599,0.00021129,2]
[366974118,1750603839305,-160.0,0.00021129,2]
[366974120,1750603839315,-846.39664074,0.00021129,2]
[366974122,1750603839328,-425.01221603,0.00021129,2]
[366974124,1750603839338,-160.0,0.00021129,2]
[366974126,1750603839347,-160.0,0.00021129,2]
[366974128,1750603839357,-160.0,0.00021129,2]
[366974130,1750603839368,-213.59462818,0.00021129,2]
[366974132,1750603839378,-160.0,0.00021129,2]
[366974134,1750603839388,-160.0,0.00021129,2]
[366974136,1750603839398,-160.0,0.00021129,2]
[366974138,1750603839408,-743.774,0.00021164,2]
[366974140,1750603839418,-427.40638672,0.00021171,2]
[366974142,1750603839428,-12621.43034172,0.000212,2]
[366974144,1750603839438,-365.0,0.00021262,2]
[366974146,1750603839448,-160.48,0.00021273,3]
[366974148,1750603839458,-481.45,0.00021273,3]
[366974150,1750603839468,-1888.0,0.00021284,2]
[366974152,1750603839479,-8090.44869531,0.000213,5]
[366974154,1750603839489,-8090.44869507,0.000213,5]
[366974156,1750603839499,-8090.44869507,0.000213,5]
[366974158,1750603839510,-8090.44869507,0.000213,5]
[366974160,1750603839520,-8090.44869507,0.00021314,5]
[366974162,1750603839530,-420.0,0.00021335,2]
[366974164,1750603839540,-263.29,0.00021384,2]
[366974166,1750603839550,-8090.44869507,0.00021417,5]
[366974168,1750603839559,-800.0,0.00021465,2]
[366974170,1750603839574,-2099.080697,0.00021478,4]
[366974173,1750603839584,-250.0,0.00021507,2]
[366974176,1750603839594,-12621.43034172,0.00021509,2]
[366974178,1750603839604,-8090.44869507,0.00021521,5]
[366974181,1750603839614,-5000.0,0.00021535,2]
[366974184,1750603839623,-25000.0,0.00021535,2]
[366974187,1750603839633,-427.40638672,0.00021541,2]
[366974189,1750603839643,-420.0,0.00021554,2]
[366974190,1750603839653,-420.0,0.00021554,2]
[366974193,1750603839665,-420.0,0.00021554,2]
[366974195,1750603839676,-177.196,0.00021592,2]
[366974197,1750603839685,-8090.44869507,0.00021624,5]
[366974199,1750603839696,-1680.0,0.00021657,2]
[366974200,1750603839705,-8090.44869507,0.00021728,5]
[366974202,1750603839715,-153.01641056,0.00021731,2]
[366974204,1750603839725,-153.01641056,0.0002176,2]
[366974206,1750603839735,-186.86317252,0.00021774,2]
[366974208,1750603839745,-153.01641056,0.00021788,2]
[366974211,1750603839756,-12621.43034172,0.00021817,2]
[366974214,1750603839766,-153.01641056,0.00021817,2]
[366974217,1750603839776,-5585.08935114,0.00021817,2]
[366974220,1750603839785,-8090.44869507,0.00021831,6]
[366974223,1750603839795,-12500.0,0.00021838,2]
[366974226,1750603839805,-4794.84481225,0.00021847,2]
[366974229,1750603839818,-2314.66705778,0.00021847,2]
[366974233,1750603839833,-5390.48812997,0.00021847,2]
[366974235,1750603839842,-12500.0,0.00021856,2]
[366974239,1750603839852,-12500.0,0.00021865,2]
[366974242,1750603839862,-12500.0,0.00021874,2]
[366974244,1750603839872,-12500.0,0.00021874,2]
[366974245,1750603839881,-12500.0,0.00021882,2]
[366974247,1750603839891,-12500.0,0.00021882,2]
[366974249,1750603839901,-12500.0,0.00021891,2]
[366974251,1750603839910,-12500.0,0.00021891,2]
[366974253,1750603839921,-202.14709712,0.000219,10]
[366974254,1750603839931,-151.0,0.000219,3]
[366974255,1750603839941,-151.0,0.000219,3]
[366974256,1750603839950,-12500.0,0.000219,2]
[366974257,1750603839961,-12500.0,0.000219,2]
[366974258,1750603839981,-969.682,0.00021905,2]
[366974259,1750603840001,-2161.0,0.00021905,2]
[366974260,1750603840014,-406.0,0.00021905,2]
[366974261,1750603840024,-406.0,0.00021905,2]
[366974262,1750603840033,-654.0,0.00021905,2]
[366974263,1750603840043,-427.40638672,0.0002191,2]
[366974264,1750603840052,-155.0,0.00021916,2]
[366974265,1750603840062,-532.6,0.00021916,7]
[366974266,1750603840072,-8549.15027386,0.00021917,2]
[366974268,1750603840082,-14817.32724265,0.00021917,2]
[366974269,1750603840093,-151.0,0.00021917,2]
[366974270,1750603840103,-151.0,0.00021917,2]
[366974271,1750603840113,-151.0,0.00021917,2]
[366974272,1750603840123,-151.0,0.00021917,2]
[366974274,1750603840132,-460.0,0.00021917,3]
[366974276,1750603840142,-460.0,0.00021917,3]
[366974278,1750603840153,-510.374031,0.00021917,3]
[366974280,1750603840163,-551.1,0.00021917,3]
[366974282,1750603840173,-551.1,0.00021917,3]
[366974284,1750603840183,-551.1,0.00021917,3]
[366974287,1750603840193,-551.1,0.00021917,3]
[366974289,1750603840203,-551.1,0.00021917,3]
[366974291,1750603840213,-551.1,0.00021917,3]
[366974293,1750603840223,-551.1,0.00021917,3]
[366974294,1750603840232,-551.1,0.00021917,3]
[366974296,1750603840242,-551.1,0.00021917,3]
[366974299,1750603840252,-551.1,0.00021917,3]
[366974301,1750603840262,-551.1,0.00021917,3]
[366974303,1750603840271,-551.1,0.00021917,3]
[366974304,1750603840281,-551.1,0.00021917,3]
[366974306,1750603840291,-551.1,0.00021917,3]
[366974309,1750603840300,-551.1,0.00021917,3]
[366974311,1750603840310,-551.1,0.00021917,3]
[366974313,1750603840319,-551.1,0.00021917,3]
[366974315,1750603840330,-551.1,0.00021917,3]
[366974317,1750603840340,-551.1,0.00021917,3]
[366974319,1750603840350,-551.1,0.00021917,3]
[366974321,1750603840360,-551.1,0.00021917,3]
[366974323,1750603840369,-551.1,0.00021917,3]
[366974325,1750603840379,-551.1,0.00021917,3]
[366974327,1750603840389,-551.16994964,0.00021917,3]
[366974329,1750603840399,-460.0,0.00021917,3]
[366974331,1750603840408,-460.0,0.00021917,3]
[366974333,1750603840418,-460.0,0.00021917,3]
[366974335,1750603840428,-460.0,0.00021917,3]
[366974337,1750603840437,-460.0,0.00021917,3]
[366974339,1750603840447,-460.0,0.00021917,3]
[366974341,1750603840457,-460.0,0.00021917,3]
[366974342,1750603840467,-460.0,0.00021917,3]
[366974344,1750603840478,-460.0,0.00021917,3]
[366974347,1750603840488,-462.65398131,0.00021917,3]
[366974348,1750603840497,-460.0,0.00021917,3]
[366974351,1750603840508,-460.0,0.00021917,3]
[366974352,1750603840518,-460.0,0.00021917,3]
[366974355,1750603840528,-460.0,0.00021917,3]
[366974357,1750603840538,-460.0,0.00021917,3]
[366974360,1750603840548,-460.0,0.00021917,3]
[366974362,1750603840558,-457.94991472,0.00021917,3]
[366974364,1750603840567,-460.0,0.00021917,3]
[366974367,1750603840583,-460.0,0.00021917,3]
[366974369,1750603840593,-460.0,0.00021917,3]
[366974371,1750603840603,-556.54104373,0.00021917,3]
[366974373,1750603840613,-460.0,0.00021917,3]
[366974375,1750603840622,-460.0,0.00021917,3]
[366974377,1750603840633,-460.0,0.00021917,3]
[366974379,1750603840643,-460.0,0.00021917,3]
[366974381,1750603840653,-460.0,0.00021917,3]
[366974383,1750603840664,-460.0,0.00021917,3]
[366974385,1750603840674,-460.0,0.00021917,3]
[366974387,1750603840685,-460.0,0.00021917,3]
[366974389,1750603840696,-460.0,0.00021917,3]
[366974391,1750603840707,-460.0,0.00021917,3]
[366974393,1750603840717,-460.0,0.00021917,3]
[366974395,1750603840727,-460.0,0.00021917,3]
[366974397,1750603840737,-460.0,0.00021917,3]
[366974399,1750603840747,-282.58546962,0.00021917,3]
[366974401,1750603840757,-431.53933683,0.00021917,3]
[366974403,1750603840767,-460.0,0.00021917,3]
[366974405,1750603840777,-460.0,0.00021917,3]
[366974407,1750603840787,-530.68391938,0.00021917,3]
[366974409,1750603840796,-460.0,0.00021917,3]
[366974411,1750603840805,-460.0,0.00021917,3]
[366974413,1750603840815,-460.0,0.00021917,3]
[366974415,1750603840830,-460.0,0.00021917,3]
[366974417,1750603840839,-460.0,0.00021917,3]
[366974419,1750603840848,-321.86509884,0.00021917,3]
[366974420,1750603840858,-460.0,0.00021917,3]
[366974424,1750603840877,-376.18050452,0.00021917,3]
[366974426,1750603840893,-460.0,0.00021917,3]
[366974429,1750603840908,-460.0,0.00021917,3]
[366974431,1750603840922,-460.0,0.00021917,3]
[366974433,1750603840935,-460.0,0.00021917,3]
[366974436,1750603840951,-460.0,0.00021917,3]
[366974438,1750603840965,-460.0,0.00021917,3]
[366974441,1750603840982,-460.0,0.00021917,3]
[366974443,1750603840995,-555.79928705,0.00021917,3]
[366974446,1750603841009,-462.74646412,0.00021917,3]
[366974448,1750603841023,-460.0,0.00021917,3]
[366974450,1750603841037,-296.09532386,0.00021917,3]
[366974453,1750603841055,-460.0,0.00021917,3]
[366974455,1750603841071,-460.0,0.00021917,3]
[366974457,1750603841087,-460.0,0.00021917,3]
[366974460,1750603841101,-460.0,0.00021917,3]
[366974462,1750603841113,-460.0,0.00021917,3]
[366974464,1750603841125,-460.0,0.00021917,3]
[366974467,1750603841140,-460.0,0.00021917,3]
[366974469,1750603841152,-460.0,0.00021917,3]
[366974471,1750603841165,-460.0,0.00021917,3]
[366974473,1750603841175,-460.0,0.00021917,3]
[366974476,1750603841187,-460.0,0.00021917,3]
[366974478,1750603841199,-460.0,0.00021917,3]
[366974480,1750603841211,-460.0,0.00021917,3]
[366974483,1750603841224,-460.0,0.00021917,3]
[366974485,1750603841237,-460.0,0.00021917,3]
[366974488,1750603841249,-460.0,0.00021917,3]
[366974490,1750603841263,-460.0,0.00021917,3]
[366974492,1750603841276,-460.0,0.00021917,3]
[366974495,1750603841290,-460.0,0.00021917,3]
[366974497,1750603841303,-460.0,0.00021917,3]
[366974499,1750603841314,-460.0,0.00021917,3]
[366974502,1750603841328,-460.0,0.00021917,3]
[366974504,1750603841339,-460.0,0.00021917,3]
[366974506,1750603841351,-460.0,0.00021917,3]
[366974509,1750603841366,-460.0,0.00021917,3]
[366974511,1750603841379,-460.0,0.00021917,3]
[366974513,1750603841391,-460.0,0.00021917,3]
[366974515,1750603841402,-460.0,0.00021917,3]
[366974518,1750603841413,-460.0,0.00021917,3]
[366974520,1750603841426,-460.0,0.00021917,3]
[366974522,1750603841438,-361.98393442,0.00021917,3]
[366974524,1750603841450,-432.2685416,0.00021917,3]
[366974527,1750603841461,-460.0,0.00021917,3]
[366974529,1750603841472,-460.0,0.00021917,3]
[366974531,1750603841484,-460.0,0.00021917,3]
[366974533,1750603841496,-460.0,0.00021917,3]
[366974535,1750603841508,-460.0,0.00021917,3]
[366974537,1750603841519,-430.0,0.00021917,3]
[366974540,1750603841536,-460.0,0.00021917,3]
[366974542,1750603841548,-460.0,0.00021917,3]
[366974544,1750603841560,-460.0,0.00021917,3]
[366974547,1750603841573,-460.0,0.00021917,3]
[366974549,1750603841585,-460.0,0.00021917,3]
[366974551,1750603841597,-460.0,0.00021917,3]
[366974553,1750603841609,-460.0,0.00021917,3]
[366974556,1750603841621,-403.01821586,0.00021917,3]
[366974558,1750603841633,-430.0,0.00021917,3]
[366974560,1750603841644,-460.0,0.00021917,3]
[366974562,1750603841656,-460.0,0.00021917,3]
[366974564,1750603841668,-460.0,0.00021917,3]
[366974567,1750603841680,-460.0,0.00021917,3]
[366974569,1750603841691,-460.0,0.00021917,3]
[366974571,1750603841703,-460.0,0.00021917,3]
[366974573,1750603841714,-370.9216017,0.00021917,3]
[366974576,1750603841726,-151.0,0.00021917,2]
[366974578,1750603841737,-151.0,0.00021917,2]
[366974580,1750603841749,-151.0,0.00021917,2]
[366974582,1750603841760,-151.0,0.00021917,2]
[366974584,1750603841771,-151.0,0.00021917,2]
[366974586,1750603841783,-151.0,0.00021917,2]
[366974589,1750603841794,-151.0,0.00021917,2]
[366974591,1750603841805,-151.0,0.00021917,2]
[366974593,1750603841816,-151.0,0.00021917,2]
[366974595,1750603841828,-213.71092,0.00021917,2]
[366974598,1750603841845,-460.0,0.00021917,3]
[366974600,1750603841856,-460.0,0.00021917,3]
[366974602,1750603841867,-460.0,0.00021917,3]
[366974604,1750603841879,-460.0,0.00021917,3]
[366974606,1750603841890,-460.0,0.00021917,3]
[366974609,1750603841901,-460.0,0.00021917,3]
[366974611,1750603841912,-460.0,0.00021917,3]
[366974613,1750603841923,-420.0,0.00021917,3]
[366974615,1750603841934,-151.0,0.00021917,2]
[366974617,1750603841946,-205.77564,0.00021917,2]
[366974620,1750603841961,-460.0,0.00021917,3]
[366974622,1750603841972,-460.0,0.00021917,3]
[366974624,1750603841986,-460.0,0.00021917,3]
[366974626,1750603841997,-460.0,0.00021917,3]
[366974629,1750603842009,-460.0,0.00021917,3]
[366974631,1750603842021,-430.0,0.00021917,3]
[366974633,1750603842033,-151.0,0.00021917,2]
[366974635,1750603842046,-151.0,0.00021917,2]
[366974638,1750603842057,-151.0,0.00021917,2]
[366974640,1750603842068,-151.0,0.00021917,2]
[366974642,1750603842083,-151.0,0.00021917,2]
[366974645,1750603842096,-151.0,0.00021917,2]
[366974647,1750603842108,-151.0,0.00021917,2]
[366974649,1750603842119,-151.0,0.00021917,2]
[366974651,1750603842130,-462.30673277,0.00021917,3]
[366974653,1750603842141,-151.0,0.00021917,2]
[366974656,1750603842153,-151.0,0.00021917,2]
[366974658,1750603842164,-151.0,0.00021917,2]
[366974660,1750603842176,-151.0,0.00021917,2]
[366974662,1750603842187,-230.081069,0.00021917,2]
[366974665,1750603842199,-1036.53709069,0.00021917,3]
[366974667,1750603842210,-460.0,0.00021917,3]
[366974669,1750603842221,-462.71,0.00021917,3]
[366974671,1750603842232,-462.71,0.00021917,3]
[366974673,1750603842243,-462.71,0.00021917,3]
[366974675,1750603842254,-462.71,0.00021917,3]
[366974678,1750603842265,-462.71,0.00021917,3]
[366974680,1750603842277,-462.71,0.00021917,3]
[366974682,1750603842288,-462.71,0.00021917,3]
[366974685,1750603842299,-462.71,0.00021917,3]
[366974687,1750603842311,-462.71,0.00021917,3]
[366974689,1750603842323,-462.71,0.00021917,3]
[366974691,1750603842334,-462.71,0.00021917,3]
[366974693,1750603842345,-462.71,0.00021917,3]
[366974695,1750603842356,-462.71,0.00021917,3]
[366974698,1750603842367,-462.71,0.00021917,3]
[366974700,1750603842378,-462.71,0.00021917,3]
[366974702,1750603842389,-462.71,0.00021917,3]
[366974704,1750603842401,-462.71,0.00021917,3]
[366974706,1750603842412,-462.71,0.00021917,3]
[366974708,1750603842423,-462.71,0.00021917,3]
[366974711,1750603842434,-462.71,0.00021917,3]
[366974713,1750603842445,-462.71,0.00021917,3]
[366974715,1750603842457,-462.71,0.00021917,3]
[366974717,1750603842468,-462.71,0.00021917,3]
[366974720,1750603842480,-462.87441302,0.00021917,3]
[366974722,1750603842491,-460.0,0.00021917,3]
[366974725,1750603842502,-460.0,0.00021917,3]
[366974727,1750603842514,-460.0,0.00021917,3]
[366974729,1750603842525,-460.0,0.00021917,3]
[366974731,1750603842536,-460.0,0.00021917,3]
[366974734,1750603842548,-460.0,0.00021917,3]
[366974736,1750603842558,-460.0,0.00021917,3]
[366974738,1750603842569,-460.0,0.00021917,3]
[366974740,1750603842583,-536.13715019,0.00021917,3]
[366974742,1750603842595,-460.0,0.00021917,3]
[366974744,1750603842606,-460.0,0.00021917,3]
[366974747,1750603842618,-460.0,0.00021917,3]
[366974749,1750603842629,-360.0,0.00021917,3]
[366974752,1750603842640,-460.0,0.00021917,3]